[Event "4NCL 2022-2023"]
[Site "Daventry"]
[Date "2023.02.12"]
[Round "6.12"]
[White "Jaracz, Pawel"]
[Black "Bates, Richard A"]
[Result "1-0"]
[ECO "B66"]
[WhiteElo "2465"]
[BlackElo "2329"]
[Annotator "TA"]
[PlyCount "87"]
[EventDate "2022.10.20"]
[EventType "team-tourn"]
[EventCountry "ENG"]
[SourceTitle "playchess.com"]
[Source "ChessBase"]
[SourceQuality "1"]
[TimeControl "40/6000+30:2400+30"]

{[%evp 21,87,11,37,35,41,45,162,137,158,138,166,190,187,187,131,119,131,120,123,131,145,133,708,631,664,583,669,472,494,473,454,335,309,279,331,266,335,235,235,228,236,238,225,235,235,211,211,191,225,219,267,278,271,248,377,357,415,398,608,409,432,411,524,522,518,475,649,637]} 1. e4 {[%emt 0:00:07]} c5 {[%emt 0:03:29]} 2. Nf3 {[%emt 0:00:08]} d6 {[%emt 0:00:12]} 3. d4 {[%emt 0:00:11]} cxd4 {[%emt 0:00:10]} 4. Nxd4 {[%emt 0:00:06]} Nf6 {[%emt 0:00:05]} 5. Nc3 {[%emt 0:00:08]} a6 {[%emt 0:00:08]} 6. Bg5 {[%emt 0:00:26]} Nc6 {[%emt 0:03:42]} 7. Qd2 {[%emt 0:01:08]} e6 {[%emt 0:00:11]} 8. O-O-O {[%emt 0:00:56]} h6 {[%emt 0:02:35]} 9. Nxc6 {[%emt 0:01:26]} bxc6 {[%emt 0:00:10]} 10. Bf4 {[%emt 0:00:12]} d5 {[%emt 0:00:59]} 11. Qe3 {[%emt 0:01:57]} Be7 {[%emt 0:05:20]} 12. Be2 {[%emt 0:01:24] B66: Sicilian: Richter-Rauzer: 7...a6 8 0-0-0 h6.} O-O {[%emt 0:25:37]} 13. h4 {[%emt 0:07:18]} Nh7 {[%emt 0:32:42]} (13... Nd7 $14) 14. g4 $1 $18 {[%emt 0:31:30][%cal Bg2g4,Bg4g5,Bg5h6,Bh6g7][%mdl 32] White is clearly better.} Bxh4 {[%emt 0:04:35] [#]} 15. Kb1 $1 {[%emt 0:00:13][%cal Of4h6] Hoping for Bxh6!} Bg5 {[%emt 0:04:36] [#]} 16. Bxg5 {[%emt 0:00:15]} Qxg5 {[%emt 0:00:23]} 17. f4 {[%emt 0:00:11]} Qe7 {[%emt 0:05:42] [#]} 18. g5 $1 {[%emt 0:04:03][%cal Re4d5][%mdl 512]} d4 {[%emt 0:01:44]} 19. Qxd4 {[%emt 0:10:27]} e5 {[%emt 0:00:44] [#]} 20. Qb6 $146 {[%emt 0:07:45]} (20. Qxe5 $6 Qxe5 21. fxe5 Nxg5 $11) (20. fxe5 $6 Nxg5 21. Qd6 Re8 $11) ({Predecessor:} 20. Qa4 exf4 21. gxh6 g5 22. Qxc6 Rb8 23. Rd6 Kh8 24. Qc5 g4 25. Rf1 f3 26. Bxf3 gxf3 27. Rxf3 {1-0 Edouard,R (2686)-Raetsky,A (2427) Al Ain op 1st 2012 (6)}) 20... exf4 {[%emt 0:02:51]} 21. gxh6 $40 {[%emt 0:00:11][%mdl 128] Black is in trouble. White has more active pieces.} Be6 $2 {[%emt 0:08:04][%mdl 8192] A mistake that costs the game.} (21... g5 $16 22. Qd4 (22. Qxc6 Rb8 $16) 22... f6) 22. hxg7 {[%emt 0:02:29]} ({Less strong is} 22. Bxa6 Qa7 23. Qxa7 (23. Qxc6 $2 Qxa6 24. Qxa6 Rxa6 $19) 23... Rxa7 $18) (22. Qxc6 g6 23. Bxa6 Qf6 $18) 22... Rfb8 {[%emt 0:00:13]} 23. Qa5 {[%emt 0:00:25] Intending Qh5 and mate.} c5 {[%emt 0:03:54]} 24. Rh5 {[%emt 0:01:50] Rdh1 would be deadly.} ({And not} 24. Bxa6 Bc4 25. b3 (25. Rh6 Bxa6 26. Nd5 Qe5 $15) 25... Rxa6 $15) 24... Qb7 {[%emt 0:02:20][%csl Gb8][%cal Rb7b2]} 25. b3 {[%emt 0:06:15]} (25. Rxc5 $2 Qxb2#) 25... Qb4 {[%emt 0:00:31]} 26. Qxc5 {[%emt 0:06:40]} Qxc5 {[%emt 0:00:11]} 27. Rxc5 {[%emt 0:00:05] And now Rg1 would win.} Kxg7 {[%emt 0:00:13]} 28. Rf1 {[%emt 0:02:33]} a5 {[%emt 0:01:55]} 29. a4 {[%emt 0:01:05]} ({But not} 29. Rxf4 Rc8 $18) 29... Rc8 {[%emt 0:00:35]} 30. Rxc8 {[%emt 0:00:10]} Rxc8 {[%emt 0:00:03]} 31. Kb2 {[%emt 0:00:04]} Kf6 {[%emt 0:00:08]} 32. Rxf4+ {[%emt 0:00:07]} Ke5 {[%emt 0:00:02]} 33. Rf1 {[%emt 0:00:53]} Nf6 {[%emt 0:00:13]} 34. Ba6 {[%emt 0:02:55]} Rh8 {[%emt 0:00:44]} 35. Bd3 {[%emt 0:01:10]} Rh2 {[%emt 0:00:23]} 36. Rg1 {[%emt 0:00:45] Strongly threatening Rg5+.} Ng4 {[%emt 0:01:02]} 37. Be2 {[%emt 0:03:06]} Nf2 {[%emt 0:01:07]} (37... Rh4 {was called for.} 38. Rg3 f6) 38. Rg5+ {[%emt 0:00:55][%mdl 64] Skewer} Kd4 {[%emt 0:00:42]} 39. Rxa5 {[%emt 0:05:38]} Rh3 {[%emt 0:00:38]} (39... Nxe4 $142 40. Nxe4 Rxe2) 40. Nd5 {[%emt 0:06:04]} Kxe4 {[%emt 0:00:26]} 41. Bf1 {[%emt 0:44:05]} Rh2 {[%emt 0:00:00]} 42. Nc3+ {[%emt 0:00:00] White is clearly winning.} Kf4 {[%emt 0:03:48]} 43. Rc5 {[%emt 0:00:00]} Ng4 {[%emt 0:04:36]} 44. a5 {[%emt 0:00:00] An entertaining game by Jaracz.   Weighted Error Value: White=0.33/Black=0.43} 1-0

[Event "4NCL 2022-2023"]
[Site "Daventry"]
[Date "2023.02.12"]
[Round "6.13"]
[White "Webb, Laurence E"]
[Black "Galyas, Miklos"]
[Result "0-1"]
[ECO "D31"]
[WhiteElo "2156"]
[BlackElo "2442"]
[Annotator "TA"]
[PlyCount "172"]
[EventDate "2022.10.20"]
[EventType "team-tourn"]
[EventCountry "ENG"]
[SourceTitle "playchess.com"]
[Source "ChessBase"]
[SourceQuality "1"]
[TimeControl "40/6000+30:2400+30"]

{[%evp 9,172,29,32,37,40,36,32,0,40,0,0,8,24,-17,-15,-15,-16,-4,-7,-8,6,0,0,0,0,0,0,0,0,0,0,0,0,-30,-27,-22,-16,-37,-37,-141,-141,-141,-141,-141,-141,-141,-141,-156,-141,-141,-141,-141,-141,-141,-141,-141,-119,-141,-119,-166,-119,-155,-119,-141,-124,-141,0,-141,-124,-141,-141,-141,-124,-141,-141,-141,-144,-144,-133,-163,-144,-144,-121,-116,-111,-111,-111,-111,-111,-137,-112,-181,-168,-170,-160,-159,-165,-156,-151,-161,-107,-292,-250,-268,-262,-335,-258,-253,-251,-251,-237,-236,-225,-224,-214,-179,-169,-546,-477,-502,-441,-401,-392,-416,-395,-517,-500,-550,-537,-608,-587,-598,-382,-586,-489,-566,-554,-29952,-29951,-29956,-29953,-29951,-29960,-29954,-29961,-29960,-29962,-29966,-29968,-29975,-29971,-29971,-29972,-29977,-29970,-29970,-29958,-29979,-29979,-29979,-29980,-29984,-29985,-29983,-29984]} 1. d4 {[%emt 0:00:13]} d5 {[%emt 0:00:08]} 2. c4 {[%emt 0:00:06]} e6 {[%emt 0:00:09]} 3. Nc3 {[%emt 0:00:05]} a6 {[%emt 0:00:09]} 4. cxd5 {[%emt 0:00:17]} exd5 {[%emt 0:00:06]} 5. Nf3 {[%emt 0:00:11]} h6 {[%emt 0:00:10]} 6. Bf4 {[%emt 0:01:04] D31: Queen's Gambit Declined: Semi-Slav without ...Nf6 (+ Marshall Gambit and Noteboom) and Exchange Variation lines without ...Nf6.} Nf6 {[%emt 0:00:07]} 7. e3 {[%emt 0:00:18]} Bd6 {[%emt 0:00:08]} 8. Bg3 {[%emt 0:01:58] White is slightly better.} Bf5 {[%emt 0:04:58]} 9. Bd3 {[%emt 0:04:55]} (9. Be5 $5 {[%cal Re5f6]}) 9... Bxd3 {[%emt 0:00:38]} 10. Qxd3 {[%emt 0:00:06]} O-O {[%emt 0:01:01]} 11. O-O {[%emt 0:00:27]} (11. Be5 $5 {[%cal Re5f6]}) 11... Bxg3 {[%emt 0:01:24]} 12. hxg3 {[%emt 0:00:11]} Nbd7 {[%emt 0:04:31]} 13. b4 {[%emt 0:04:17]} c6 {[%emt 0:00:31]} 14. a4 {[%emt 0:02:35] [#]} b5 $146 {[%emt 0:16:12]} ({Predecessor:} 14... Re8 15. b5 cxb5 16. axb5 a5 17. Rfc1 Rc8 18. Rc2 g6 19. Rac1 Kg7 20. Na4 Rxc2 21. Qxc2 {0-1 Williams,S (2467)-Supi,L (2612) MrDodgy Online Inv Gp-A 3rd blitz 2022 (6)}) 15. a5 {[%emt 0:04:17]} Qe7 {[%emt 0:03:35]} 16. Rab1 {[%emt 0:00:18]} Ne4 {[%emt 0:00:58]} 17. Rfc1 {[%emt 0:02:36][%cal Of3e5]} Nd6 {[%emt 0:00:25]} 18. Qe2 {[%emt 0:04:20]} Rfe8 {[%emt 0:02:04]} 19. Ne1 {[%emt 0:00:44]} Nc4 {[%emt 0:03:04]} 20. Nd3 {[%emt 0:00:34]} Qg5 {[%emt 0:04:01]} 21. Ne1 {[%emt 0:12:26]} Nf6 {[%emt 0:07:41][%cal Bd7f6,Bf6e4,Be4c3][%mdl 32]} 22. Nf3 {[%emt 0:01:01]} Qf5 {[%emt 0:01:10]} 23. Nd1 {[%emt 0:14:22]} Ne4 {[%emt 0:11:39]} 24. Nb2 {[%emt 0:11:05] [#]} (24. Rb3 $15) 24... Nc3 $1 $17 {[%emt 0:01:59][%mdl 576] Discovered Attack, Double Attack. Black is much more active. The white rooks are badly placed.} 25. Qd3 {[%emt 0:00:47]} Qxd3 {[%emt 0:01:30]} 26. Nxd3 {[%emt 0:00:04]} Nxb1 {[%emt 0:00:11]} 27. Rxb1 {[%emt 0:00:08]} f6 {[%emt 0:10:24]} 28. Nc5 {[%emt 0:02:06]} Kf7 {[%emt 0:00:31]} 29. g4 {[%emt 0:06:23]} g5 {[%emt 0:00:47]} 30. g3 {[%emt 0:06:27]} Rh8 {[%emt 0:03:16]} 31. Kg2 {[%emt 0:01:15]} h5 {[%emt 0:00:28]} 32. gxh5 {[%emt 0:01:27]} Rxh5 {[%emt 0:00:32]} 33. Re1 {[%emt 0:07:09]} Nd6 {[%emt 0:02:32]} 34. Nd2 {[%emt 0:03:14]} (34. g4 $17 Rhh8 35. Kg3) 34... Rhh8 {[%emt 0:04:51]} ({Better is} 34... g4 $19 35. Rg1 Ke7) 35. Rc1 {[%emt 0:01:28]} Ra7 {[%emt 0:01:34]} 36. Nf3 {[%emt 0:02:37]} Ke7 {[%emt 0:11:15]} 37. Re1 {[%emt 0:05:03]} Kf7 {[%emt 0:04:14]} 38. Rc1 {[%emt 0:00:42]} Rh6 {[%emt 0:00:46]} 39. Re1 {[%emt 0:00:57]} Ke8 {[%emt 0:04:45]} 40. Rc1 {[%emt 0:02:38]} Ke7 {[%emt 0:01:22]} 41. Rc2 {[%emt 0:43:22]} Ra8 {[%emt 0:44:18]} 42. Rc1 {[%emt 0:05:07]} Rh7 {[%emt 0:00:00]} 43. Rc2 {[%emt 0:00:00]} Kd8 {[%emt 0:00:00]} 44. Nd2 {[%emt 0:00:00]} Nc4 {[%emt 0:00:00]} 45. Nf3 {[%emt 0:00:00]} Kc7 {[%emt 0:00:00]} 46. Nh2 {[%emt 0:00:00]} Rah8 {[%emt 0:00:00]} 47. Nxa6+ {[%emt 0:00:00]} Kb7 {[%emt 0:00:00]} 48. Nc5+ {[%emt 0:00:00]} Ka8 {[%emt 0:00:00] White must now prevent ...Nxe3+.} 49. Nf3 {[%emt 0:00:00]} Rh1 $1 {[%emt 0:00:00] Repels Rc1} 50. e4 {[%emt 0:00:00]} (50. Nd7 $17) 50... dxe4 {[%emt 0:00:00]} 51. Nxe4 {[%emt 0:00:00]} g4 {[%emt 0:00:00]} 52. Nh4 {[%emt 0:00:00]} Rb1 {[%emt 0:00:00]} 53. Nxf6 {[%emt 0:00:00]} Rxb4 {[%emt 0:00:00]} 54. Nxg4 {[%emt 0:00:00]} Nxa5 {[%emt 0:00:00]} (54... c5 $1 $19 {[%cal Rc5d4]} 55. Nf3 cxd4) 55. Ng6 $2 {[%emt 0:00:00] This costs White the game.} (55. Nf3 $17 {keeps fighting.}) 55... Rb8 {[%emt 0:00:00]} ({Weaker is} 55... Rg8 56. N4e5 $17) 56. N4e5 {[%emt 0:00:00]} Rxd4 {[%emt 0:00:00] ...b4 would be deadly.} 57. Ne7 {[%emt 0:00:39]} Re8 {[%emt 0:00:07]} 58. N7xc6 {[%emt 0:01:30]} Nxc6 {[%emt 0:00:07]} 59. Nxc6 $19 {[%emt 0:00:21][%mdl 4096] Endgame KRR-KRN} Rc4 {[%emt 0:00:10]} 60. Ra2+ {[%emt 0:00:34]} Ra4 {[%emt 0:00:02]} 61. Rb2 {[%emt 0:01:25]} Kb7 {[%emt 0:01:00]} 62. Nb4 {[%emt 0:00:59]} Rd8 {[%emt 0:00:20]} 63. f4 $2 {[%emt 0:04:23]} (63. Na2 {is tougher.}) 63... Kb6 {[%emt 0:00:33]} 64. Na2 {[%emt 0:00:58]} Ra3 {[%emt 0:02:26] Repels Nc3} 65. Nc1 {[%emt 0:00:49] [#]} Rg8 $1 {[%emt 0:01:01]} 66. Ne2 {[%emt 0:00:36]} Ka5 {[%emt 0:00:07]} 67. f5 {[%emt 0:01:13]} b4 {[%emt 0:00:10][%cal Bb5b4,Bb4b3,Bb3b2][%mdl 32]} 68. Kh3 {[%emt 0:00:41]} Ka4 {[%emt 0:03:11]} ({Inferior is} 68... Rf3 69. Kg2 Rd3 70. f6 $17) 69. Kh4 {[%emt 0:00:28]} Ra1 {[%emt 0:00:12][%cal Ra1h1]} 70. g4 {[%emt 0:00:37]} Rh1+ {[%emt 0:00:38]} 71. Kg3 {[%emt 0:00:08]} Ka3 {[%emt 0:00:23]} 72. Rd2 {[%emt 0:00:34] [#]} b3 $1 {[%emt 0:00:06] ( -> ...b2)} 73. Rd7 {[%emt 0:01:01]} b2 {[%emt 0:01:47] Black mates.} 74. Ra7+ {[%emt 0:00:08]} Kb3 {[%emt 0:00:05]} 75. Rb7+ {[%emt 0:00:11]} Kc2 {[%emt 0:00:17]} 76. Nd4+ {[%emt 0:01:05]} Kd3 {[%emt 0:00:39]} 77. Rxb2 {[%emt 0:00:40]} Kxd4 {[%emt 0:00:05]} 78. Rb4+ {[%emt 0:00:32]} Ke5 {[%emt 0:00:12]} 79. Kg2 {[%emt 0:00:32]} Ra1 {[%emt 0:00:20]} 80. Kg3 {[%emt 0:00:22]} Kf6 {[%emt 0:00:47]} 81. Kh4 {[%emt 0:00:39]} Rh1+ {[%emt 0:00:13]} 82. Kg3 {[%emt 0:00:04]} Kg5 {[%emt 0:00:07]} 83. Kg2 {[%emt 0:00:53]} Ra1 {[%emt 0:00:06]} 84. Kf3 {[%emt 0:00:33]} Re8 {[%emt 0:00:56]} 85. Rb6 {[%emt 0:00:32]} Ra3+ {[%emt 0:00:07]} 86. Kf2 {[%emt 0:00:05]} Kxg4 {[%emt 0:00:07] Weighted Error Value: White=0.19 (very precise) /Black=0.12 (very precise)} 0-1

[Event "4NCL 2022-2023"]
[Site "Daventry"]
[Date "2023.02.12"]
[Round "6.14"]
[White "Kolbus, Dietmar"]
[Black "Nelson, Jonathan P"]
[Result "1/2-1/2"]
[ECO "E84"]
[WhiteElo "2277"]
[BlackElo "2164"]
[Annotator "TA"]
[PlyCount "47"]
[EventDate "2022.10.20"]
[EventType "team-tourn"]
[EventCountry "ENG"]
[SourceTitle "playchess.com"]
[Source "ChessBase"]
[SourceQuality "1"]
[TimeControl "40/6000+30:2400+30"]

{[%evp 25,47,12,33,-15,-39,-31,-17,-25,0,0,0,0,0,0,0,0,19,19,25,22,12,0,0,0]} 1. c4 {[%emt 0:00:04]} Nf6 {[%emt 0:00:17]} 2. d4 {[%emt 0:00:51]} g6 {[%emt 0:00:06]} 3. Nc3 {[%emt 0:00:08]} Bg7 {[%emt 0:00:04]} 4. e4 {[%emt 0:00:07]} d6 {[%emt 0:00:05]} 5. f3 {[%emt 0:00:18]} O-O {[%emt 0:00:09]} 6. Be3 {[%emt 0:00:04]} Nc6 {[%emt 0:01:13]} 7. Nge2 {[%emt 0:01:06]} a6 {[%emt 0:01:05]} 8. Qd2 {[%emt 0:00:24]} Rb8 {[%emt 0:00:09]} 9. Nc1 {[%emt 0:02:52]} e5 {[%emt 0:00:35]} 10. Nb3 {[%emt 0:06:54]} exd4 {[%emt 0:21:34]} 11. Nxd4 {[%emt 0:00:06]} Nxd4 {[%emt 0:00:04]} 12. Bxd4 {[%emt 0:00:07]} Be6 {[%emt 0:00:04]} 13. Be2 {[%emt 0:00:17]} c6 {[%emt 0:00:17]} 14. Rd1 {[%emt 0:01:08] E84: King's Indian: Sämisch Panno: 7 Nge2 a6 8 Qd2 Rb8.} (14. a4 $14 {is superior.}) 14... b5 $11 {[%emt 0:00:40]} 15. cxb5 {[%emt 0:19:08]} axb5 {[%emt 0:00:06]} 16. b4 {[%emt 0:01:29] Against Qa5} c5 {[%emt 0:19:37]} 17. bxc5 {[%emt 0:00:22]} dxc5 {[%emt 0:18:00]} 18. Bxc5 {[%emt 0:00:15]} Qxd2+ {[%emt 0:01:31]} 19. Rxd2 {[%emt 0:00:16]} Rfc8 {[%emt 0:20:11] [#]} 20. Bb4 $146 {[%emt 0:00:26]} ({Predecessor:} 20. Bd6 Rb6 21. Bb4 Bf8 22. Bxf8 Kxf8 23. Nxb5 Rc1+ 24. Rd1 Rc2 25. a4 Ra2 26. Nd4 {1-0 Muehling,W (2133)-Maurer,J (2170) Landesliga Nord 0708 2007 (3.2)}) 20... Rxc3 {[%emt 0:01:29][%mdl 64] [#] Remove Defender, Decoy} 21. Bxc3 {[%emt 0:00:12] And now Bd4 would win.} Nxe4 $1 {[%emt 0:00:04][%mdl 64] Discovered Attack, Double Attack} 22. Bxg7 {[%emt 0:00:27]} ({Reject} 22. fxe4 Bxc3 23. Kd1 Bxd2 24. Kxd2 Bxa2 $17) 22... Nxd2 {[%emt 0:00:05]} 23. Kxd2 {[%emt 0:15:52] Bf6 would be deadly.} (23. Be5 $5 Rd8 $8 24. Bxb5 $11) 23... Kxg7 {[%emt 0:00:05]} 24. a3 {[%emt 0:00:25] An uneventful encounter.   Weighted Error Value: White=0.09 (flawless) /Black=0.10 (very precise)} 1/2-1/2

[Event "4NCL 2022-2023"]
[Site "Daventry"]
[Date "2023.02.12"]
[Round "6.15"]
[White "Ledger, Dave J"]
[Black "Terbe, Julianna"]
[Result "1/2-1/2"]
[ECO "D45"]
[WhiteElo "2168"]
[BlackElo "2278"]
[Annotator "TA"]
[PlyCount "102"]
[EventDate "2022.10.20"]
[EventType "team-tourn"]
[EventCountry "ENG"]
[SourceTitle "playchess.com"]
[Source "ChessBase"]
[SourceQuality "1"]
[TimeControl "40/6000+30:2400+30"]

{[%evp 12,102,24,10,46,13,49,14,19,8,13,0,0,0,0,-16,0,-16,12,-9,-5,-25,-20,-29,-11,-28,-9,-9,-16,-27,-15,-10,-13,-27,-32,-31,-25,-41,-17,-33,-37,-33,-17,-25,-23,-29,73,96,126,121,117,125,126,128,186,179,212,205,205,210,214,213,213,205,195,198,186,190,188,0,0,0,153,0,0,0,0,0,0,0,0,0,0,0,0,0,0,0,0,0,0,0,0]} 1. d4 {[%emt 0:00:05]} d5 {[%emt 0:00:11]} 2. c4 {[%emt 0:00:23]} c6 {[%emt 0:00:07]} 3. Nf3 {[%emt 0:00:27]} Nf6 {[%emt 0:00:07]} 4. Nc3 {[%emt 0:01:04]} e6 {[%emt 0:01:50]} 5. e3 {[%emt 0:00:50]} a6 {[%emt 0:00:06]} 6. c5 {[%emt 0:02:41]} Nbd7 {[%emt 0:00:14]} 7. b4 {[%emt 0:00:24]} g6 {[%emt 0:03:33][%cal Oe6e5] D45: Semi-Slav: 5 e3.} 8. Bd3 {[%emt 0:02:50]} Bg7 {[%emt 0:00:06][%cal Oe6e5]} (8... e5 $5 {[%cal Re5e4]} 9. dxe5 (9. Nxe5 Nxe5 10. dxe5 Ng4 $11) 9... Ng4 $11) 9. Bb2 {[%emt 0:01:38]} O-O {[%emt 0:00:15][%cal Oe6e5]} 10. h3 {[%emt 0:05:32]} Qe7 {[%emt 0:04:07] [#]} 11. O-O $146 {[%emt 0:07:47]} ({Predecessor:} 11. Ne2 Ne8 12. O-O Nc7 13. Qd2 f6 14. e4 e5 15. Ng3 dxe4 16. Nxe4 f5 17. Nd6 {0-1 Postny,E (2552)-Aagaard,J (2461) La Nucia op 2021 (6)}) 11... e5 {[%emt 0:01:41]} 12. dxe5 {[%emt 0:02:04]} Nxe5 {[%emt 0:01:48]} 13. Nxe5 {[%emt 0:00:37]} Qxe5 {[%emt 0:00:06]} 14. Qe2 {[%emt 0:05:59]} Bf5 {[%emt 0:06:36]} 15. Rad1 {[%emt 0:06:04][%cal Oc3e4]} (15. Ne4 {keeps more tension.} Qe6 16. Nd6 Bxd3 17. Qxd3 Qe7 18. a4) 15... Bxd3 {[%emt 0:09:12]} 16. Rxd3 {[%emt 0:00:38][%cal Oc3d5] Hoping for Nxd5!} Qe7 {[%emt 0:01:10]} 17. Na4 {[%emt 0:12:28]} Rfe8 {[%emt 0:04:38]} 18. Bd4 {[%emt 0:02:48]} Nd7 {[%emt 0:08:15][%cal Bf6d7,Bd7f8,Bf8e6][%mdl 32]} (18... Nh5 $5 {[%cal Rh5f4]} 19. Qb2 f5 $11) 19. Bxg7 {[%emt 0:01:54]} Kxg7 {[%emt 0:00:05]} 20. Rd4 {[%emt 0:07:59]} Qf6 {[%emt 0:07:29]} 21. Qd2 {[%emt 0:02:03][%cal Oe3e4]} Nf8 {[%emt 0:03:04]} 22. Nb6 {[%emt 0:05:40]} Rad8 {[%emt 0:00:18]} 23. Rd1 {[%emt 0:02:12]} Ne6 {[%emt 0:02:32]} 24. Rd3 {[%emt 0:00:42]} Ng5 {[%emt 0:01:48]} 25. Qc2 {[%emt 0:02:32]} Re4 {[%emt 0:07:29]} 26. Rd4 {[%emt 0:06:47]} Rde8 {[%emt 0:06:23]} 27. a3 {[%emt 0:07:08]} Rxd4 {[%emt 0:02:34]} 28. Rxd4 {[%emt 0:00:27]} Re4 {[%emt 0:03:27]} (28... Ne6 $11 29. Rd1 Ng5) 29. h4 $1 $16 {[%emt 0:03:16]} Ne6 {[%emt 0:04:22]} 30. Rxe4 {[%emt 0:00:09]} dxe4 {[%emt 0:00:21]} 31. Qxe4 {[%emt 0:00:52][%mdl 4096] Endgame KQN-KQN} Qa1+ {[%emt 0:00:16]} 32. Kh2 {[%emt 0:00:06] Active counter play!} Qb2 {[%emt 0:00:26]} (32... Qxa3 $16 {keeps fighting.} 33. Qe5+ Kg8) 33. Kg3 $18 {[%emt 0:02:02]} Qxa3 {[%emt 0:08:44]} 34. Qe5+ {[%emt 0:03:58]} Kg8 {[%emt 0:13:29]} 35. Nd7 $1 {[%emt 0:03:49]} Qxb4 {[%emt 0:00:27]} 36. Nf6+ {[%emt 0:03:27][%mdl 64] Deflection} Kf8 {[%emt 0:00:05]} 37. Nxh7+ {[%emt 0:00:13]} Kg8 {[%emt 0:00:04]} 38. Nf6+ {[%emt 0:00:12]} Kf8 {[%emt 0:00:05]} 39. h5 $1 {[%emt 0:02:41]} gxh5 {[%emt 0:04:28] [#]} 40. Nd7+ $2 {[%emt 0:01:09]} ({Worse is} 40. Qxh5 Qb1 $11) (40. Nxh5 Qxc5 41. Qb8+ Ke7 42. Qxb7+ Kf8 43. Qb8+ Ke7 44. Qb7+ Kf8 45. Qc8+ Ke7 46. Qb7+ $11) ({Only move:} 40. Qb8+ $1 $18 Kg7 41. Nxh5+ Kh7 42. Qe8) 40... Ke8 $11 {[%emt 0:04:04]} 41. Nf6+ $2 {[%emt 0:00:00]} (41. Qxh5 $11 Kxd7 42. Qxf7+ Kd8 43. Qxe6) 41... Kf8 $16 {[%emt 0:00:00] [#]} 42. Qxh5 $2 {[%emt 0:01:57]} (42. Qb8+ $1 $16 Kg7 43. Nxh5+ Kh7 44. Qe8) 42... a5 $11 {[%emt 0:02:21] The position is equal.} 43. Nd7+ {[%emt 0:09:51]} Ke7 {[%emt 0:02:00]} 44. Ne5 {[%emt 0:01:21]} Qxc5 {[%emt 0:02:10] And now ...Nd8 would win.} 45. Qxf7+ {[%emt 0:02:06]} Kd6 {[%emt 0:00:06]} 46. Ng4 {[%emt 0:03:08]} b5 {[%emt 0:06:08]} ({Much less strong is} 46... Qg5 47. Qxb7 Nc5 48. Qb8+ Kd5 49. f3 $16) 47. e4 {[%emt 0:10:27] Strongly threatening e5+.} ({Don't go for} 47. Qf6 $2 b4 48. f3 Qc3 $19) 47... Qc3+ {[%emt 0:02:33]} (47... Qg5 $2 48. e5+ Kd5 49. Qd7+ Kc5 50. Qxe6 $18) 48. Kh2 {[%emt 0:01:09]} Qh8+ {[%emt 0:06:53]} 49. Kg1 {[%emt 0:00:35] e5+ is the strong threat.} Qa1+ {[%emt 0:00:05]} 50. Kh2 {[%emt 0:00:03] Black must now prevent e5+.} Qh8+ {[%emt 0:00:05]} 51. Kg1 {[%emt 0:00:03] aiming for e5+.} Qa1+ {[%emt 0:00:07] White really could win this.   Weighted Error Value: White=0.19 (very precise) /Black=0.14 (very precise)} 1/2-1/2